Cogmind - Beta 14 *** ADVENTURER MODE // 2024.09.26 @ 18:55:57 Player: Knightshade Result: Destroyed by G-34 Mercenary with Small Laser Performance ------------- Evolutions (1) 500 Regions Visited (4) 800 Robots Destroyed (111) 555 Value Destroyed (3261) 3261 Prototype IDs (14) 280 Alien Tech Used (0) 0 Bonus (812) 812 TOTAL SCORE: 6208 Bonus ------- High Alert Combat Kills 112 Entered Garrisons 200 Used RIF Installer 500 Cogmind --------- Core Integrity 0/400 Matter 234/300 Energy 250/250 System Corruption 5% Temperature Cool (9) Movement Rolling (150) Ox4 Location -9/Garrison Parts ------- > --- POWER (1) -------- Ion Engine > --- PROPULSION (2) --- Armored Wheel Armored Wheel > --- UTILITY (4) ------ Huge Storage Unit Hardened Light Armor Plating Hardened Light Armor Plating > --- WEAPON (2) ------- Ion Cannon Rocket Launcher > --- INVENTORY (25) --- Gravmag System Gravmag System Improved Flight Unit Improved Flight Unit Improved Flight Unit Improved Flight Unit Medium Storage Unit Machine Analyzer Hacking Suite Authchip [Power] Authchip [Propulsion] Authchip [Storage] Authchip [Storage] Authchip [Processor] Authchip [Processor] Authchip [Processor] Relay Coupler [NC] (34) Relay Coupler [Swarmer] (49) Relay Coupler [Grunt] (32) Relay Coupler [Hunter] (23) Trap Extractor (4/4 Explosive) Improved Lightning Gun Improved Datajack Plasma Cutter Peak State ------------ > --- POWER ------------ Micro Nuclear Core > --- PROPULSION ------- Armored Wheel Armored Wheel > --- UTILITY ---------- Huge Storage Unit Hardened Light Armor Plating Hardened Light Armor Plating Hardened Light Armor Plating > --- WEAPON ----------- Guided EMP Blaster > --- INVENTORY -------- Gravmag System Gravmag System Improved Flight Unit Improved Flight Unit Improved Flight Unit Improved Flight Unit Medium Storage Unit Machine Analyzer Hacking Suite Authchip [Power] Authchip [Propulsion] Authchip [Storage] Authchip [Storage] Authchip [Processor] Authchip [Processor] Authchip [Processor] Relay Coupler [NC] Trap Extractor Improved Lightning Gun Ion Cannon Ion Cannon Rocket Launcher Plasma Cutter [Rating: 34] Favorites ----------- Power Improved Ion Engine Engine Improved Ion Engine Power Core Micro Nuclear Core Propulsion Armored Wheel Treads Light Treads Wheel Armored Wheel Utility Huge Storage Unit Device Trap Extractor Storage Huge Storage Unit Processor Signal Interpreter Protection Hardened Light Armor Plating Weapon Ion Cannon Energy Gun Heavy EM Pulse Gun Energy Cannon Ion Cannon Ballistic Gun Assault Rifle Launcher Guided EMP Blaster Special Weapon Plasma Cutter Slashing Weapon Katana Special Melee Weapon Improved Datajack Build | -11 -10 -9 -9 -9 ------- Run | Yrd Mat Mat Sto Gar Slots Evolved 2 | . . 2 . . Power . | . . . . . Propulsion . | . . . . . Utility 2 | . . 2 . . Weapon . | . . . . . Parts Attached 79 | 6 8 29 21 15 Power 8 | 1 1 2 2 2 Engine 7 | 1 1 2 2 1 Core 1 | . . . . 1 Reactor . | . . . . . Propulsion 7 | 2 . 2 3 . Treads 2 | 2 . . . . Leg . | . . . . . Wheel 5 | . . 2 3 . Hover . | . . . . . Flight . | . . . . . Utility 18 | 1 3 9 4 1 Device 4 | . 1 3 . . Storage 3 | 1 2 . . . Processor 1 | . . 1 . . Hackware . | . . . . . Protection 10 | . . 5 4 1 Artifact . | . . . . . Weapon 46 | 2 4 16 12 12 Energy Gun 14 | 1 3 8 2 . Energy Cannon 14 | . . 5 5 4 Ballistic Gun 1 | 1 . . . . Ballistic Cannon . | . . . . . Launcher 4 | . 1 . 1 2 Special Weapon 1 | . . . . 1 Impact Weapon . | . . . . . Slashing Weapon 6 | . . 1 3 2 Piercing Weapon . | . . . . . Special Melee Weapon 6 | . . 2 1 3 Unidentified Prototypes 4 | . . . 4 . Parts Lost 13 | . . 6 3 4 Power 3 | . . . 2 1 Propulsion . | . . . . . Utility 7 | . . 4 1 2 Weapon 3 | . . 2 . 1 Highest Loss Streak 3 | . . 3 1 2 To Critical Strikes . | . . . . . Average Slot Usage (%) 96 | . 94 97 98 95 Engine 11 | . 14 11 10 6 Treads 11 | . 28 7 . . Wheel 12 | . . 14 22 22 Device 9 | . 8 13 5 . Storage 11 | . 14 11 11 11 Protection 15 | . . 15 27 32 Energy Gun 10 | . 14 15 1 . Energy Cannon 5 | . . 4 10 9 Ballistic Gun 3 | . 12 . . . Slashing Weapon 2 | . . 1 7 2 Peak Build Rating 34 | 6 14 24 32 34 Average Rating 18 | 5 8 20 25 27 On Entrance 14 | . 6 14 24 27 Naked Turns . | . . . . . Heaviest Build 116 | 14 94 115 116 114 Greatest Support 40 | 40 40 40 24 24 Greatest Overweight (x) 36 | . 2 36 9 4 Average Overweight (x) 3 | . 1 3 4 3 Largest Inventory Capacity 25 | 8 25 25 25 25 Average Capacity 24 | 7 23 25 25 25 Most Carried 25 | 5 25 25 25 25 Average Carried 19 | 1 12 22 24 24 Final Capacity 25 | 8 25 25 25 25 Final Carried 25 | 2 25 25 25 24 Class Distribution -------------------- 98% | Mutant Dominant Class ---------------- Mutant | -10/Materials Mutant | -9/Materials Mutant | -9/Storage Mutant | -9/Garrison Resources | -11 -10 -9 -9 -9 ----------- Run | Yrd Mat Mat Sto Gar Matter Collected 1427 | 281 191 337 349 269 Remotely . | . . . . . Salvage Created 4062 | 124 315 1734 1120 769 Parts 282 | 11 33 104 82 52 Haulers Intercepted 7 | . 2 3 2 . Recyclers Shooed 2 | 1 1 . . . Parts Field Recycled . | . . . . . Retrieved Matter . | . . . . . Parts Self-Destructed . | . . . . . Prevented . | . . . . . Kills | -11 -10 -9 -9 -9 ------- Run | Yrd Mat Mat Sto Gar Combat Hostiles Destroyed 83 | . 8 29 23 23 Melee 14 | . . . 10 4 Guns 27 | . 3 22 2 . Cannons 18 | . . 5 11 2 AOE 22 | . 5 . . 17 Classes Destroyed 14 | 2 4 5 1 2 Worker 1 | . . . 1 . Builder 1 | . . 1 . . Tunneler 2 | 2 . . . . Hauler 7 | . 2 3 2 . Recycler 4 | 1 1 2 . . Mechanic 2 | . 1 . 1 . Operator 2 | . . 1 1 . Watcher 9 | . 3 5 1 . Swarmer 26 | . 8 3 7 8 Grunt 29 | . . 15 5 9 Brawler 4 | . . . . 4 Duelist 1 | . . 1 . . Sentry 21 | . . 10 11 . Programmer 2 | . . . . 2 Best Kill Streak 7 | 3 7 5 4 6 Combat Bots Only 6 | . 5 4 4 6 Max Kills in Single Turn 3 | 1 3 2 1 2 Gunslinging . | . . . . . Exploded 3 | . 3 . . 2 Melee 1 | . . . 1 1 Uniques/NPCs Destroyed . | . . . . . Combat | -11 -10 -9 -9 -9 -------- Run | Yrd Mat Mat Sto Gar Hostile Shots Fired 392 | . 55 140 110 87 Missed 110 | . 16 50 22 22 Damage Taken 2887 | . 239 943 957 748 Core 448 | . 45 65 193 145 Absorbed by Shields 27 | . . . . 27 Ignored by Resistances 823 | . 83 282 246 212 Core Remaining (%) 91 | 100 82 . . . Volleys Fired 183 | 7 27 86 35 28 Largest 2 | 2 2 2 2 2 Hottest 136 | 70 70 130 136 120 Shots Fired 320 | 14 54 163 58 31 Gun 222 | 14 49 148 11 . Cannon 72 | . . 15 47 10 Launcher 26 | . 5 . . 21 Special . | . . . . . Kinetic 34 | 7 27 . . . Thermal 170 | 7 22 80 51 10 Explosive 9 | . 5 . . 4 Electromagnetic 107 | . . 83 7 17 Robot Hit Streak 34 | 6 10 34 11 25 Robot Miss Streak 6 | 1 6 2 3 . Penetration Max . | . . . . . Secondary Targets 6 | . . 6 . . Max Gunslinging Chain 1 | . . 1 . . Shots Hit Robots 274 | 11 32 124 78 29 Core Hits 131 | 4 23 51 28 25 Critical Kills 2 | . . 2 . . Critical Parts Destroyed . | . . . . . Critical Strikes 21 | 2 1 5 9 4 Burn 4 | 2 1 1 . . Meltdown 2 | . . 2 . . Corrupt 2 | . . 2 . . Sever 13 | . . . 9 4 Melee Attacks 66 | . . 1 49 16 Impact . | . . . . . Slashing 64 | . . 1 48 15 Piercing . | . . . . . Sneak Attacks 7 | . . 1 6 . Combat Hostiles . | . . . . . Follow-up Attacks . | . . . . . Damage Inflicted 6929 | 141 817 2189 2264 1518 Guns 2411 | 141 388 1755 127 . Cannons 1163 | . . 251 722 190 Explosions 1483 | . 429 82 . 972 Melee 1755 | . . 71 1415 269 Ramming 117 | . . 30 . 87 Kinetic 267 | 52 215 . . . Thermal 2317 | 89 173 1110 722 223 Explosive 751 | . 429 . . 322 Electromagnetic 1722 | . . 978 127 617 Impact . | . . . . . Slashing 1755 | . . 71 1415 269 Piercing . | . . . . . Highest Corruption 5 | . . . . 5 Average Corruption 2 | . . . . 2 Corruption Purged . | . . . . . Corruption Blocked . | . . . . . Effects 17 | . . . . 17 Message Errors 9 | . . . . 9 Matter Fused 1 | . . . . 1 Heat Flow Errors 2 | . . . . 2 Data Loss (minor) 3 | . . . . 3 Data Loss (major) 1 | . . . . 1 Alerts 1 | . . . . 1 Overload Shots . | . . . . . Overflow Damage 99 | . 19 5 33 42 Projectiles 2 | . . . 2 . Explosions 61 | . 19 . . 42 Melee 36 | . . 5 31 . Knockbacks . | . . . . . Impact . | . . . . . Kinetic . | . . . . . Secondary . | . . . . . Self-Inflicted Damage 175 | . 20 15 . 140 Shots 7 | . 1 . . 6 Rammed 9 | . . 1 . 8 Targets Rammed 9 | . . 1 . 8 Kicked . | . . . . . Crushed . | . . . . . Highest Temperature 717 | 63 54 609 717 440 Average Temperature 125 | 32 14 100 213 100 Received Heat Transfer 938 | . . 486 318 134 Effects 29 | . . 4 21 4 Shutdowns 5 | . . 1 3 1 Energy Bleed 4 | . . 2 1 1 Interference 7 | . . 1 5 1 Matter Decay 3 | . . . 3 . Short Circuit 2 | . . . 1 1 Damage (minor) 3 | . . . 3 . Damage (major) 3 | . . . 3 . Damage (core) 2 | . . . 2 . Siege Activations . | . . . . . Robots Corrupted . | . . . . . Combat Hostiles . | . . . . . Parts Fried 8 | . . 8 . . Impact Corruptions 1 | . . 1 . . Robots Melted 2 | . . 2 . . Combat Hostiles 2 | . . 2 . . Parts Melted 9 | 2 . 3 4 . Heat Transferred 5034 | 407 592 2394 1295 346 Parts Sabotaged . | . . . . . Parts Stolen . | . . . . . Parts Stripped . | . . . . . Power Chain Reactions 3 | . . 1 . 2 Alert | -11 -10 -9 -9 -9 ------- Run | Yrd Mat Mat Sto Gar Peak Influence 925 | 15 200 366 310 925 Initial 86 | . 8 . 16 86 Average 135 | 7 34 104 155 476 Maximum Alert Level 3 | . 1 1 1 3 Low Security (%) 76 | 100 92 85 69 20 Level 1 16 | . 7 14 30 24 Level 2 3 | . . . . 28 Level 3 3 | . . . . 26 Level 4 . | . . . . . Level 5 . | . . . . . High Security . | . . . . . Max Security . | . . . . . Squads Dispatched 7 | . . 2 5 . Investigation 1 | . . 1 . . Extermination . | . . . . . Reinforcement 2 | . . 1 1 . Assault . | . . . . . Garrison 4 | . . . 4 . Intercept . | . . . . . Searches Triggered . | . . . . . Construction Impeded . | . . . . . Haulers Reinforced . | . . . . . Active Scanning Responses . | . . . . . Cargo Convoy Interrupts . | . . . . . Stealth | -11 -10 -9 -9 -9 --------- Run | Yrd Mat Mat Sto Gar Distress Signals 10 | . . 6 4 . Communications Jammed . | . . . . . Distress Signals . | . . . . . Times Spotted 126 | . 17 41 37 31 Peak Tracking Total 7 | . 6 5 7 5 Tactical Retreats 19 | . . 7 3 9 Traps | -11 -10 -9 -9 -9 ------- Run | Yrd Mat Mat Sto Gar Traps Triggered 8 | . . 2 1 5 Indirectly 2 | . . . . 2 Trap Hack Attempts 134 | . . 66 30 38 Triggered 1 | . . . . 1 Disarmed 2 | . . 1 . 1 Reprogrammed 21 | . . 11 3 7 Reused 3 | . . . . 3 Traps Extracted 13 | . . 10 3 . Installed . | . . . . . Triggered 3 | . . . . 3 Most Traps Carried 6 | . . 6 6 4 Machines | -11 -10 -9 -9 -9 ---------- Run | Yrd Mat Mat Sto Gar Machines Disabled 8 | . 1 1 4 2 Max in Single Turn 1 | . 1 1 1 1 Garrison Relay 2 | . . . . 2 Machines Repaired . | . . . . . Machines Dismantled 1 | . . . . 1 Machines Sabotaged . | . . . . . Overloaded Fab Kills . | . . . . . Hacking | -11 -10 -9 -9 -9 --------- Run | Yrd Mat Mat Sto Gar Machines Accessed 35 | . 9 12 14 . Terminals 28 | . 7 10 11 . Fabricators . | . . . . . Repair Stations . | . . . . . Recycling Units 5 | . 2 1 2 . Scanalyzers 1 | . . 1 . . Garrison Access 1 | . . . 1 . Total Hacks 86 | . 16 39 31 . Successful 60 | . 11 26 23 . Failed 26 | . 5 13 8 . Catastrophic 3 | . . . 3 . Database Lockouts . | . . . . . Manual 44 | . 7 16 21 . Terminals 75 | . 13 34 28 . Fabricators . | . . . . . Repair Stations . | . . . . . Recycling Units 6 | . 3 1 2 . Scanalyzers 4 | . . 4 . . Garrison Access 1 | . . . 1 . Terminal Hacks 33 | . 8 14 11 . Record 2 | . . 1 1 . Part Schematic 1 | . . . 1 . Prototype ID Bank 7 | . 2 5 . . Open Door 5 | . . . 5 . Branch Access Points 2 | . 1 1 . . Emergency Access Points 1 | . . 1 . . Terminal Index 3 | . 1 1 1 . Locate Traps 2 | . 1 1 . . Maintenance Status 1 | . 1 . . . Patrol Status 1 | . . 1 . . Hauler Manifests 2 | . 1 1 . . Registered Components 3 | . 1 1 1 . Zone Layout 3 | . . 1 2 . Fabricator Hacks . | . . . . . Repair Station Hacks . | . . . . . Recycling Unit Hacks 5 | . 2 1 2 . Report Inventory 5 | . 2 1 2 . Scanalyzer 4 | . . 4 . . Insert Component 2 | . . 2 . . Analyze 2 | . . 2 . . Garrison Access Hacks 1 | . . . 1 . Unlock Access 1 | . . . 1 . Unauthorized Hacks 17 | . 1 7 9 . Terminals 17 | . 1 7 9 . Track 3 | . . 1 2 . Assimilate 1 | . . . 1 . Botnet 11 | . 1 5 5 . Operators 2 | . . 1 1 . Fabricators . | . . . . . Repair Stations . | . . . . . Recycling Units . | . . . . . Scanalyzers . | . . . . . Garrison Access . | . . . . . Data Cores Recovered . | . . . . . Used . | . . . . . Hacking Detections 29 | . 7 11 11 . Full Trace Events 1 | . . 1 . . Feedback Events . | . . . . . Feedback Blocked . | . . . . . Robot Schematics Acquired . | . . . . . Robots Built . | . . . . . Authchips . | . . . . . Time . | . . . . . Total Robot Build Rating . | . . . . . Part Schematics Acquired 3 | . . 2 1 . Parts Built . | . . . . . Authchips . | . . . . . Time . | . . . . . Total Part Build Rating . | . . . . . Parts Repaired . | . . . . . Time . | . . . . . Parts Recycled . | . . . . . Recycled Matter . | . . . . . Retrieved Matter . | . . . . . Retrieved Components . | . . . . . Parts Scanalyzed 2 | . . 2 . . Part Schematics Acquired 2 | . . 2 . . Parts Damaged . | . . . . . Bothacking | -11 -10 -9 -9 -9 ------------ Run | Yrd Mat Mat Sto Gar Used RIF Installer 1 | . . . . 1 Robots Hacked 1 | . . . 1 . Non-combat 1 | . . . 1 . Combat . | . . . . . Robot Hacks Applied 1 | . . . 1 . parse_system 1 | . . . 1 . Relay Couplers Released 6 | . . . . 6 Machine Destruction 6 | . . . . 6 Fabnet Peak Effective % . | . . . . . Robots Rewired . | . . . . . Allies Hacked . | . . . . . Hacks Repelled . | . . . . . Allies | -11 -10 -9 -9 -9 -------- Run | Yrd Mat Mat Sto Gar Total Allies 1 | . . . 1 . Largest Group 1 | . . . 1 1 Highest-Rated Group 10 | . . . 10 9 Highest-Rated Ally 10 | . . . 10 9 Total Orders 3 | . . . . 3 STAY 2 | . . . . 2 FOLLOW 1 | . . . . 1 Ally Attacks . | . . . . . Total Damage . | . . . . . Kills . | . . . . . Allies Corrupted . | . . . . . Allies Melted . | . . . . . Intel | -11 -10 -9 -9 -9 ------- Run | Yrd Mat Mat Sto Gar Robot Analysis Total . | . . . . . Derelict Logs Recovered . | . . . . . Drone Launches . | . . . . . Drone Recoveries . | . . . . . Exploration | -11 -10 -9 -9 -9 ------------- Run | Yrd Mat Mat Sto Gar Turns Passed 8382 | 120 2521 2996 1784 961 Spaces Moved 3380 | 57 793 1280 785 465 Core 19 | 17 . 2 . . Treads 1087 | 40 793 254 . . Legs . | . . . . . Wheels 2274 | . . 1024 785 465 Hover . | . . . . . Flight . | . . . . . Fastest Speed 50 | 50 160 150 150 135 Average Speed 200 | 127 300 186 159 149 Slowest Speed 1850 | 160 320 1850 225 150 Overloaded Moves . | . . . . . Propulsion Burnouts . | . . . . . Robots Hopped . | . . . . . Cave-ins Triggered . | . . . . . Exploration Rate (%) 63 | 3 99 87 91 37 Regions Visited 4 Branch Regions 1 Pre-discovered Areas . | . . . . . Known Exits Taken 2 | . . 1 1 . Unknown Exits Taken 2 | 1 1 . . . Scrap Searched . | . . . . . Spaces Dug 14 | . . . 1 13 Terrain Destroyed 70 | . 26 3 1 40 Melee 1 | . . . 1 . Projectile . | . . . . . AOE 69 | . 26 3 . 40 Terrain Rammed . | . . . . . Walls Destroyed . | . . . . . Machines Disabled . | . . . . . Actions | -11 -10 -9 -9 -9 --------- Run | Yrd Mat Mat Sto Gar Total 4555 | 91 882 1723 1189 670 Wait 514 | 12 15 227 219 41 Move 3376 | 56 792 1279 784 465 Hop . | . . . . . Pick Up 92 | 9 31 21 21 10 Fast Attach 2 | . 2 . . . Attach 32 | 6 2 11 7 6 Detach 2 | . . . 2 . Swap 45 | . 4 18 14 9 Drop 50 | 1 9 13 20 7 Fire 183 | 7 27 86 35 28 Melee 66 | . . 1 49 16 Ram 9 | . . 1 . 8 Kick . | . . . . . Crush . | . . . . . Escape Stasis 47 | . . . 8 39 Rewire . | . . . . . Trap 134 | . . 66 30 38 Miscellaneous 3 | . . . . 3 Route ------- -11/Scrapyard -10/Materials (discovered 6 exits: *Mat x3 / *Min x2 / [*Sub]) -9/Materials (discovered 4 exits: [*Mat x2] / *Min / *Sto) -9/Storage (discovered 3 exits: [*Mat] / [*Rec] / Gar) -9/Garrison History --------- Turn | Location | Event 8 | -11/Scrapyard | Discovered new exit (range 15) 121 | -11/Scrapyard | Entered Materials 311 | -10/Materials | Build established: Mutant 503 | -10/Materials | Discovered new exit (range 10) 1266 | -10/Materials | Discovered new exit (range 4) 1641 | -10/Materials | Discovered new exit (range 10) 1794 | -10/Materials | Discovered new exit (range 15) 1971 | -10/Materials | Discovered new exit (range 16) 1987 | -10/Materials | Identified exit to Mines 2448 | -10/Materials | Discovered new exit (range 12) 2642 | -10/Materials | Entered another Materials area 2642 | -9/Materials | Evolved 2 slots: Utility x2 3574 | -9/Materials | Discovered new exit (range 9) 3981 | -9/Materials | Lost 3 parts (2u1w) 4217 | -9/Materials | Discovered new exit (range 10) 4642 | -9/Materials | Discovered new exit (range 15) 5324 | -9/Materials | Discovered new exit (range 10) 5338 | -9/Materials | Identified exit to Mines 5338 | -9/Materials | Identified exit to Storage 5638 | -9/Materials | Entered Storage 6198 | -9/Storage | Core integrity fell below 50% 6227 | -9/Storage | Garrison activated, responded to threat 6549 | -9/Storage | Identified exit to Garrison 6949 | -9/Storage | Discovered new exit (range 8) 7057 | -9/Storage | Used back door to open Recycling access 7057 | -9/Storage | Discovered new exit (range 5) 7399 | -9/Storage | Garrison activated, responded to threat 7422 | -9/Storage | Entered Garrison 7422 | -9/Garrison | Accompanied by 1 ally 7450 | -9/Garrison | Triggered checkpoint 7552 | -9/Garrison | Core integrity fell below 20% 7573 | -9/Garrison | Installed Relay Interface Framework 7616 | -9/Garrison | Garrison Relay disabled 7832 | -9/Garrison | Triggered checkpoint 8174 | -9/Garrison | Triggered checkpoint 8246 | -9/Garrison | Garrison Relay disabled 8296 | -9/Garrison | Triggered checkpoint 8383 | -9/Garrison | Destroyed by G-34 Mercenary with Small Laser Last Messages --------------- 08358_ S-10 Pest unfolds itself. 08360_ S-10 Pest destroyed. 08361_ H>8 V<,XS6B#XWHZ2QPCRMZ 08362_ Destroyed Flight Unit. 08362_ S-10 Pest destroyed. 08364_ Stasis field depleted. 08366_ Triggered Stasis Trap. 08366_ A bubble of rippling energy engulfs the area. 08366_ Field strength at 90. 08368_ Field strength at 80. 08369_ Field strength at 70. 08370_ Field strength at 60. 08371_ Field strength at 50. 08372_ Field strength at 40. 08373_ Field strength at 30. 08374_ Field strength at 20. 08375_ Field strength at 10. 08376_ Stasis field depleted. 08377_ Hrd. Light Armor Plating destroyed. 08381_ The unstable cave ceiling collapses. Map ----- +----------------------------------------------------+ | ?????????????????????????????????????????????????? | | ?????????????????????????????????????????????????? | | ?????????????????????????????????????????????????? | | ?????????????????????????????????????????????????? | | ?????????????????????????????????????????????????? | | ?????????????????????????????????????????????????? | | ?????????????????????????????????????????????????? | | ????????????????????????###??????????????????????? | | ???????????????????????? ??????????????????????? | | ???????????????????????? ??????????????????????? | | ????????????????????????# #?????????????????????? | | ????????????????????????# #?????????????????????? | | ????????????????????????# #?????????????????????? | | ###????????????????????? #?????????????????????? | | ##????????????????????# #?????????????????????? | | #????????????????????# ###???????????????????? | | ###############?????? # #?????###???????????? | | ?????? #???????????? | | ######## ### ###?????? ?????? #???????????? | | ???????# #??????????????# g #?????? #???????????? | | ?????### #?????????????? ####### #???????????? | | ?????#"# #?????????????? # # #???????????? | | ?????# ! #?????????##### ^ #??# #???????????? | | ?????#!] #?????????? # [ ##??# #???????????? | | ?????# #????????????## #???# #??####?? #? | | ?????#"# #????????????# @ #???# #? #? #? | | ?????### #?#####??????## * #??## ## ## #? | | ???????# #?#=%=#???????# # #### #? | | ???????# ### *%########## *! #? | | ???????# = %= #? | | ???????################# ###### ## ##?? #? | | ????????????????????????# ###??### ## # #? | | ????????????????????????###????# "? | | ???????????????????????????????# "? | | ???????????????????????????????# = "? | | ???????????????????????????????# * * "? | | ???????????????????????????????###%=[## ## #? | | ???????????????????????###########[ *## ## #? | | ???????????????????????# / ===[= ^^ #? | | ???????????????????????# = * !*[ [^^ "? | | ???????????????????????# ######## %!=% !=^% #? | | ???????????????????????# #??????## ###%[ ##= #? | | ???????????????????????# #???????# #??! #?? #? | | ???????????????????????#* #???????# #???####??? #? | | ???????????????????????#= ######### #????????????? | | ???????????????????????# = #????????????? | | ???????????????????????# ###########????????????? | | ???????????????????????#/ #??????????????????????? | | ???????????????????????# #??????????????????????? | | ???????????????#####???#*=#??????????????????????? | +----------------------------------------------------+ Best States ------------- Heat Dissipation 50 Energy Generation 15 Energy Capacity 265 Matter Stores 300 Matter Capacity 300 Sight Range 16 Robot Scan Range 14 Terrain Scan Density 10 Armor Coverage 600 Resistance: KI 20 Resistance: TH 20 Resistance: EX 20 Resistance: EM 20 Resistance: I 20 Resistance: S 20 Resistance: P 20 Evasion (%) 50 Recoil Reduction 2 Offensive Hacking 10 Authchip Count 7 Trap Extractor Capacity 4 Item Schematics ----------------- Katana | -9/Materials | Scanalyzed Ion Cannon | -9/Materials | Scanalyzed Adv. ECM Suite | -9/Storage | Hacked Robot Schematics ------------------ None Fabricated ------------ Nothing Alien Tech Used ----------------- None Achievements -------------- Fist Fight Challenges ------------ None Game ------ Seed VortexSurgeWell Manual? 0 Play Time 02:25:19 Cumulative 82.0 hours Start 2024.09.25 @ 18:15:40 End 2024.09.26 @ 18:55:57 Sessions 1 Manual Loads 0 Difficulty Adventurer Special Mode None Game No. 56 Rogue 0 Adventurer 56 Explorer 0 Win Type - Total 0 Types 0/0/0/0/0/0/0/0/0 Lore% 21 Gallery% 41 Achievement% 35 Wizard Run 0 Options --------- Layout 0 ASCII 0 Keyboard 0 Movement Mouse Keybinds 0 Fullscreen 1 Font 18/SmallcapsGlow Map View 76x50 Zoom Use 0% Tactical HUD 1 Map Filters NONE Filters NONE Steam 1 RUN: 8ef838de-7cc5-4fd0-b473-0577f3621385